Cogmind - Beta 13 X1 @@@ ROGUE MODE // 2023.11.05 @ 17:02:25 Player: Plexion Result: Core destroyed Performance ------------- Evolutions (0) 0 Regions Visited (4) 800 Robots Destroyed (33) 165 Value Destroyed (848) 848 Prototype IDs (24) 480 Alien Tech Used (0) 0 Bonus (0) 0 TOTAL SCORE: 2293 Bonus ------- None Cogmind --------- Core Integrity 0/250 Matter 300/300 Energy 100/100 System Corruption 0% Temperature Cool (0) Movement Core (150) Ox2 Location -9/Mines Parts ------- > --- POWER (1) -------- (None) > --- PROPULSION (2) --- (None) > --- UTILITY (2) ------ Bomb Drone Bay (0/16) > --- WEAPON (2) ------- (None) > --- INVENTORY (5) ---- Improved Treads Cloak of Protection Grenade Launcher Makeshift Hammer Peak State ------------ > --- POWER ------------ (None) > --- PROPULSION ------- (None) > --- UTILITY ---------- Bomb Drone Bay > --- WEAPON ----------- (None) > --- INVENTORY -------- Improved Treads Cloak of Protection Grenade Launcher [Rating: 15] Favorites ----------- Power Improved Ion Engine Engine Improved Ion Engine Propulsion Light Treads Treads Light Treads Utility Large Storage Unit Device Bomb Drone Bay Storage Large Storage Unit Protection Light Armor Plating Weapon Grenade Launcher Energy Gun EM Pulse Gun Ballistic Gun Light Assault Rifle Launcher Grenade Launcher Build | -11 -10 -10 -10 -9 ------- Run | Jun Mat Min Exi Min Slots Evolved . | . . . . . Power . | . . . . . Propulsion . | . . . . . Utility . | . . . . . Weapon . | . . . . . Parts Attached 33 | 6 23 1 1 2 Power 2 | 1 1 . . . Engine 2 | 1 1 . . . Core . | . . . . . Reactor . | . . . . . Propulsion 8 | 2 6 . . . Treads 8 | 2 6 . . . Leg . | . . . . . Wheel . | . . . . . Hover . | . . . . . Flight . | . . . . . Utility 5 | 1 2 . . 2 Device 2 | . . . . 2 Storage 2 | 1 1 . . . Processor . | . . . . . Hackware . | . . . . . Protection 1 | . 1 . . . Artifact . | . . . . . Weapon 18 | 2 14 1 1 . Energy Gun 2 | 1 1 . . . Energy Cannon . | . . . . . Ballistic Gun 9 | 1 8 . . . Ballistic Cannon . | . . . . . Launcher 7 | . 5 1 1 . Special Weapon . | . . . . . Impact Weapon . | . . . . . Slashing Weapon . | . . . . . Piercing Weapon . | . . . . . Special Melee Weapon . | . . . . . Unidentified Prototypes 1 | . . . . 1 Parts Lost 5 | . 2 2 . 1 Power . | . . . . . Propulsion 1 | . 1 . . . Utility 1 | . . 1 . . Weapon 3 | . 1 1 . 1 Highest Loss Streak 2 | . 2 1 . 1 To Critical Strikes . | . . . . . Average Slot Usage (%) 80 | . 96 88 80 40 Engine 12 | . 14 14 14 4 Treads 24 | . 27 28 28 9 Device 2 | . . . . 12 Storage 12 | . 14 14 14 4 Protection 4 | . 10 5 . . Energy Gun 1 | . 4 . . . Ballistic Gun 11 | . 23 13 . . Launcher 10 | . . 12 23 9 Naked Turns . | . . . . . Heaviest Build 35 | 13 33 35 33 35 Greatest Support 46 | 40 46 43 43 43 Greatest Overweight (x) 2 | . 1 . . 2 Average Overweight (x) . | . . . . 1 Largest Inventory Capacity 15 | 8 15 15 15 15 Average Capacity 13 | 7 13 15 15 8 Most Carried 15 | 2 15 15 15 15 Average Carried 11 | . 10 14 14 7 Final Capacity 15 | 8 15 15 15 5 Final Carried 15 | 2 15 15 15 4 Class Distribution -------------------- 100% | Mutant Dominant Class ---------------- Mutant | -10/Materials Mutant | -10/Mines Mutant | -10/Exiles Mutant | -9/Mines Resources | -11 -10 -10 -10 -9 ----------- Run | Jun Mat Min Exi Min Matter Collected 1039 | 260 377 292 . 110 Remotely . | . . . . . Salvage Created 834 | . 651 174 . 9 Parts 59 | . 42 17 . . Haulers Intercepted 1 | . 1 . . . Recyclers Shooed . | . . . . . Parts Field Recycled . | . . . . . Retrieved Matter . | . . . . . Parts Self-Destructed . | . . . . . Prevented . | . . . . . Kills | -11 -10 -10 -10 -9 ------- Run | Jun Mat Min Exi Min Combat Hostiles Destroyed 31 | . 18 10 . 3 Guns 10 | . 10 . . . AOE 21 | . 8 10 . 3 Classes Destroyed 10 | . 7 3 . . Worker 1 | . . 1 . . Tunneler 3 | . 1 2 . . Hauler 1 | . 1 . . . Recycler 1 | . . 1 . . Operator 1 | . 1 . . . Watcher 1 | . 1 . . . Swarmer 6 | . 3 3 . . Grunt 16 | . 12 4 . . Subdweller 3 | . 3 . . . Assembled 6 | . . 3 . 3 Best Kill Streak 5 | . 5 5 . 3 Combat Bots Only 5 | . 5 4 . 3 Max Kills in Single Turn 3 | . 3 1 . 3 Gunslinging 1 | . 1 . . . Exploded 3 | . 3 1 . 3 Melee . | . . . . . Uniques/NPCs Destroyed . | . . . . . Combat | -11 -10 -10 -10 -9 -------- Run | Jun Mat Min Exi Min Damage Taken 1367 | . 762 351 . 254 Core 251 | . 144 67 . 40 Absorbed by Shields 27 | . . . . 27 Core Remaining (%) 100 | 100 . . . . Volleys Fired 89 | . 53 35 . 1 Largest 2 | . 2 1 . 2 Hottest 80 | . 80 30 . 60 Shots Fired 137 | . 100 35 . 2 Gun 90 | . 90 . . . Cannon . | . . . . . Launcher 47 | . 10 35 . 2 Special . | . . . . . Kinetic 67 | . 67 . . . Thermal . | . . . . . Explosive 47 | . 10 35 . 2 Electromagnetic 23 | . 23 . . . Robot Hit Streak 10 | . 10 5 . 2 Robot Miss Streak 3 | . 3 2 . . Penetration Max . | . . . . . Secondary Targets 3 | . 3 . . . Max Gunslinging Chain 1 | . 1 . . . Shots Hit Robots 78 | . 66 11 . 1 Core Hits 64 | . 39 18 . 7 Critical Kills . | . . . . . Critical Parts Destroyed . | . . . . . Critical Strikes . | . . . . . Melee Attacks . | . . . . . Impact . | . . . . . Slashing . | . . . . . Piercing . | . . . . . Sneak Attacks . | . . . . . Combat Hostiles . | . . . . . Follow-up Attacks . | . . . . . Damage Inflicted 2492 | . 1282 951 . 259 Guns 616 | . 616 . . . Cannons . | . . . . . Explosions 1816 | . 663 898 . 255 Melee . | . . . . . Ramming 60 | . 3 53 . 4 Kinetic 401 | . 401 . . . Thermal 73 | . 73 . . . Explosive 1743 | . 590 898 . 255 Electromagnetic 215 | . 215 . . . Impact . | . . . . . Slashing . | . . . . . Piercing . | . . . . . Highest Corruption . | . . . . . Average Corruption . | . . . . . Corruption Purged . | . . . . . Corruption Blocked . | . . . . . Overload Shots . | . . . . . Overflow Damage 99 | . 2 63 . 34 Projectiles . | . . . . . Explosions 99 | . 2 63 . 34 Melee . | . . . . . Knockbacks 1 | . . 1 . . Impact 1 | . . 1 . . Kinetic . | . . . . . Secondary . | . . . . . Self-Inflicted Damage 206 | . 35 140 . 31 Shots 9 | . 1 7 . 1 Rammed 8 | . 1 6 . 1 Targets Rammed 9 | . 1 7 . 1 Kicked . | . . . . . Crushed 1 | . . 1 . . Highest Temperature 132 | . 132 2 . 3 Average Temperature 47 | . 51 2 . 2 Received Heat Transfer 411 | . 351 36 . 24 Siege Activations . | . . . . . Robots Corrupted . | . . . . . Combat Hostiles . | . . . . . Parts Fried 1 | . 1 . . . Impact Corruptions . | . . . . . Robots Melted . | . . . . . Combat Hostiles . | . . . . . Parts Melted . | . . . . . Heat Transferred 150 | . 150 . . . Parts Sabotaged . | . . . . . Parts Stolen . | . . . . . Parts Stripped . | . . . . . Power Chain Reactions 1 | . 1 . . . Missiles Intercepted . | . . . . . Alert | -11 -10 -10 -10 -9 ------- Run | Jun Mat Min Exi Min Peak Influence 340 | . 340 207 . 11 Initial 79 | . . 79 . . Average 110 | . 208 85 . . Maximum Alert Level 1 | . 1 1 . . Low Security (%) 76 | 100 38 99 . 100 Level 1 23 | . 61 . . . Level 2 . | . . . . . Level 3 . | . . . . . Level 4 . | . . . . . Level 5 . | . . . . . High Security . | . . . . . Max Security . | . . . . . Squads Dispatched 2 | . 2 . . . Investigation . | . . . . . Extermination . | . . . . . Reinforcement 2 | . 2 . . . Assault . | . . . . . Garrison . | . . . . . Intercept . | . . . . . Searches Triggered . | . . . . . Construction Impeded . | . . . . . Haulers Reinforced . | . . . . . Active Scanning Responses . | . . . . . Cargo Convoy Interrupts . | . . . . . Stealth | -11 -10 -10 -10 -9 --------- Run | Jun Mat Min Exi Min Distress Signals 3 | . 3 . . . Communications Jammed . | . . . . . Distress Signals . | . . . . . Times Spotted 57 | . 30 8 . 19 Peak Tracking Total 13 | . 7 2 . 13 Tactical Retreats . | . . . . . Traps | -11 -10 -10 -10 -9 ------- Run | Jun Mat Min Exi Min Traps Triggered . | . . . . . Indirectly . | . . . . . Trap Hack Attempts . | . . . . . Triggered . | . . . . . Disarmed . | . . . . . Reprogrammed . | . . . . . Reused . | . . . . . Traps Extracted . | . . . . . Installed . | . . . . . Triggered . | . . . . . Machines | -11 -10 -10 -10 -9 ---------- Run | Jun Mat Min Exi Min Machines Disabled 1 | . 1 . . . Max in Single Turn 1 | . 1 . . . Machines Repaired . | . . . . . Machines Sabotaged . | . . . . . Overloaded Fab Kills . | . . . . . Hacking | -11 -10 -10 -10 -9 --------- Run | Jun Mat Min Exi Min Machines Accessed 5 | . 3 1 1 . Terminals 3 | . 3 . . . Fabricators . | . . . . . Repair Stations . | . . . . . Recycling Units . | . . . . . Scanalyzers . | . . . . . Garrison Access . | . . . . . Total Hacks 8 | . 6 1 1 . Successful 5 | . 3 1 1 . Failed 2 | . 2 . . . Catastrophic 1 | . 1 . . . Database Lockouts 1 | . 1 . . . Manual 6 | . 5 . 1 . Terminals 6 | . 6 . . . Fabricators . | . . . . . Repair Stations . | . . . . . Recycling Units . | . . . . . Scanalyzers . | . . . . . Garrison Access . | . . . . . Terminal Hacks 5 | . 3 1 1 . Robot Analysis 2 | . 2 . . . Open Door 1 | . . 1 . . Locate Traps 1 | . 1 . . . Derelict Proto ID Bank 1 | . . . 1 . Fabricator Hacks . | . . . . . Repair Station Hacks . | . . . . . Recycling Unit Hacks . | . . . . . Scanalyzer . | . . . . . Garrison Access Hacks . | . . . . . Unauthorized Hacks . | . . . . . Terminals . | . . . . . Fabricators . | . . . . . Repair Stations . | . . . . . Recycling Units . | . . . . . Scanalyzers . | . . . . . Garrison Access . | . . . . . Data Cores Recovered . | . . . . . Used . | . . . . . Hacking Detections 2 | . 2 . . . Full Trace Events . | . . . . . Feedback Events . | . . . . . Feedback Blocked . | . . . . . Robot Schematics Acquired . | . . . . . Robots Built . | . . . . . Authchips . | . . . . . Time . | . . . . . Total Robot Build Rating . | . . . . . Part Schematics Acquired . | . . . . . Parts Built . | . . . . . Authchips . | . . . . . Time . | . . . . . Total Part Build Rating . | . . . . . Parts Repaired . | . . . . . Time . | . . . . . Parts Recycled . | . . . . . Recycled Matter . | . . . . . Retrieved Matter . | . . . . . Retrieved Components . | . . . . . Parts Scanalyzed . | . . . . . Part Schematics Acquired . | . . . . . Parts Damaged . | . . . . . Bothacking | -11 -10 -10 -10 -9 ------------ Run | Jun Mat Min Exi Min Used RIF Installer . | . . . . . Robots Hacked . | . . . . . Non-combat . | . . . . . Combat . | . . . . . Robot Hacks Applied . | . . . . . Relay Couplers Released . | . . . . . Fabnet Peak Effective % . | . . . . . Robots Rewired 3 | . . . 3 . Allies Hacked . | . . . . . Hacks Repelled . | . . . . . Allies | -11 -10 -10 -10 -9 -------- Run | Jun Mat Min Exi Min Total Allies 6 | . . . 3 3 Largest Group 3 | . . . 3 3 Highest-Rated Group 40 | . . . 37 40 Highest-Rated Ally 21 | . . . 21 21 Total Orders . | . . . . . Ally Attacks 21 | . . . . 21 Total Damage 133 | . . . . 133 Kills 2 | . . . . 2 Allies Corrupted . | . . . . . Allies Melted . | . . . . . Intel | -11 -10 -10 -10 -9 ------- Run | Jun Mat Min Exi Min Robot Analysis Total 2 | . 2 . . . Derelict Logs Recovered 2 | . . 1 . 1 Drone Launches 16 | . . . . 16 Drone Recoveries . | . . . . . Exploration | -11 -10 -10 -10 -9 ------------- Run | Jun Mat Min Exi Min Turns Passed 3461 | 65 1041 1058 674 623 Spaces Moved 1934 | 35 517 578 407 397 Core 276 | 1 . . . 275 Treads 1658 | 34 517 578 407 122 Legs . | . . . . . Wheels . | . . . . . Hover . | . . . . . Flight . | . . . . . Fastest Speed 50 | 50 160 160 160 150 Average Speed 158 | 156 160 160 160 153 Slowest Speed 240 | 160 240 160 160 160 Overloaded Moves . | . . . . . Propulsion Burnouts . | . . . . . Robots Hopped . | . . . . . Cave-ins Triggered . | . . . . . Exploration Rate (%) 74 | 4 93 97 87 93 Regions Visited 4 Branch Regions 3 Pre-discovered Areas 2 | . . 2 . . Known Exits Taken . | . . . . . Unknown Exits Taken 4 | 1 1 1 1 . Scrap Searched 3 | . . 1 . 2 Spaces Dug . | . . . . . Terrain Destroyed 275 | . 60 204 . 11 Melee . | . . . . . Projectile . | . . . . . AOE 275 | . 60 204 . 11 Terrain Rammed . | . . . . . Walls Destroyed . | . . . . . Machines Disabled . | . . . . . Actions | -11 -10 -10 -10 -9 --------- Run | Jun Mat Min Exi Min Total 2190 | 42 636 673 430 409 Wait 82 | . 24 50 . 8 Move 1930 | 34 516 577 406 397 Hop . | . . . . . Pick Up 19 | 2 13 1 2 1 Fast Attach 10 | 6 3 . . 1 Attach 4 | . 2 . 1 1 Detach 2 | . 2 . . . Swap 19 | . 18 1 . . Drop 7 | . 4 2 1 . Fire 89 | . 53 35 . 1 Melee . | . . . . . Ram . | . . . . . Kick . | . . . . . Crush 8 | . 1 7 . . Escape Stasis . | . . . . . Rewire 20 | . . . 20 . Trap . | . . . . . Miscellaneous . | . . . . . Route ------- -11/Junkyard -10/Materials (discovered 5 exits: [*Mat x3] / *Min / [*Sub]) -10/Mines (discovered 3 exits: [*Mat x2] / *Exi) -10/Exiles -9/Mines (discovered 2 exits: [*Mat x2]) History --------- Turn | Location | Event 38 | -11/Junkyard | Discovered new exit (range 15) 66 | -11/Junkyard | Entered Materials 292 | -10/Materials | Central database locked down 300 | -10/Materials | Build established: Mutant 311 | -10/Materials | Discovered new exit (range 6) 448 | -10/Materials | Discovered new exit (range 9) 700 | -10/Materials | Derelicts attacked the area 791 | -10/Materials | Core integrity fell below 50% 839 | -10/Materials | Discovered new exit (range 15) 977 | -10/Materials | Discovered new exit (range 13) 1025 | -10/Materials | Discovered new exit (range 5) 1107 | -10/Materials | Entered Mines 1136 | -10/Mines | Met a Derelict bent on vengeance 1331 | -10/Mines | Discovered new exit (range 6) 1440 | -10/Mines | Excavation squad dispatched 1440 | -10/Mines | A large section of the Mines collapsed 1500 | -10/Mines | Discovered new exit (range 5) 1539 | -10/Mines | Found a hidden stash of uninstalled traps 1746 | -10/Mines | Found the Drone Emporium 1751 | -10/Mines | Learned location of Zion (-6) 1759 | -10/Mines | Found Prototype Device 1833 | -10/Mines | Learned location of Storage (-7) 2032 | -10/Mines | Core integrity fell below 20% 2157 | -10/Mines | Deemed a non-threat by the Exiles lab entrance 2159 | -10/Mines | Discovered new exit (range 5) 2165 | -10/Mines | Entered Exiles 2165 | -10/Exiles | Found Exiles lab destroyed 2326 | -10/Exiles | Opened EX-Vault 2337 | -10/Exiles | Found Cloak of Protection 2823 | -10/Exiles | Discovered new exit (range 12) 2839 | -10/Exiles | Entered Mines 2839 | -9/Mines | Accompanied by 3 allies 3015 | -9/Mines | Assembled infested the area 3040 | -9/Mines | Released all parts (6) 3040 | -9/Mines | Identified Bomb Drone Bay 3113 | -9/Mines | A weapon hastily lodged in a ceiling crevice suddenly fell to the ground 3200 | -9/Mines | Discovered new exit (range 13) 3231 | -9/Mines | Discovered new exit (range 11) 3263 | -9/Mines | Received a Rocket Launcher from a helpful Derelict 3324 | -9/Mines | Assisted by bots powering up and referring to "LRC-V3" 3462 | -9/Mines | Core destroyed Last Messages --------------- 03231_ EXIT=FOUND 03247_ A derelict emerges from the shadows. 03258_ GE-HMJ(g): "Some of my friends down here think you need a mining laser when you travel the depths." 03259_ GE-HMJ(g): "You know what I say? NO!" 03260_ GE-HMJ(g): "Everyone knows a good old rocket launcher goes a long way." 03261_ GE-HMJ(g): "Need to get rid of a swarm? Done. Need a big hole in the wall? Done." 03262_ GE-HMJ(g): "Need a small hole in the wall? Leave that to the mining laser wimps, I say!" 03263_ GE-HMJ(g): "Would you like a rocket launcher? I know I would if I were you, so I'm going to lend you mine." 03263_ GE-HMJ(g) slips back into the shadows. 03322_ Acquired derelict log, extracted data. Exit location confirmed. 03324_ Trooper 2a: "Hello LRC-V3. What is your command?" 03324_ Mercenary 2a: "Hello LRC-V3. What is your command?" 03324_ Trooper 2b: "Hello LRC-V3. What is your command?" 03462_ Slammed into K-01 Serf. Map ----- +----------------------------------------------------+ | #??## ##?????????????????????????# | | #?## #??????????????????????????# | | ### #??????????????????????????## #### | | ##??????????????????????????# ##??? | | ####???#####???????????????# #???? | | ## ## ## #???????????????# #???? | | ## ### ##??????????????# #???? | | ## #?# ### ##?????????????# ##???? | | ?# ##?####### ##????????????## ### ## | | ?##### #????????## #?????????????## | | ?????## #????????## ##????????###??# ###### | | ??????## #???????## #???????## #?# ###??? | | ???????### ##???????# #??????## ## #??? | | ??####????###????????# ##????### #??? | | ### ##?????????????## ##?????# < #??? | | # ####?????????## #?????# ### ###??? | | ########### ##????# #??### #????? | | #???# #?????# #????? | | ##?# #??????# #????? | | ########## ## #???????# #????? | | ## ##????????## #????????# #????? | | # ##??????????# ###????????# #####? | | ##??????????## ##??????????# #? | | #??????###### ##???????????###### #? | | ##?????# n #?????????????????# #? | | ####### ## @n##?????????????????# #? | | #### ####k ##?####????????????# #? | | ########??###??#n nn### ##?????????### #? | | #??????????????# gg ########### ## | | ##??????????????# nn g ## ] # | | ## #???????????????# ###### | | ?## #??????????????## ## ###### | | ??# #???????????????####### ###### ## < # | | ??# #???????????????###??## ##???# # | | ??## ##???????????????# ### #????# # | | ???#####????????????????# ##????# # | | ????????????????????????# ##?????# # | | ????????????????????????########??????## ## | | ???????????????????????????????????????##########? | | ?????????????????????????????????????????????????? | | ?????????????????????????????????????????????????? | | | | | | | | | | | | | | | | | | | +----------------------------------------------------+ Best States ------------- Heat Dissipation 25 Energy Generation 12 Energy Capacity 265 Matter Stores 300 Matter Capacity 300 Sight Range 16 Terrain Scan Density 10 Armor Coverage 150 Evasion (%) 40 Recoil Reduction 2 Item Schematics ----------------- None Robot Schematics ------------------ None Fabricated ------------ Nothing Alien Tech Used ----------------- None Achievements -------------- None Challenges ------------ None Game ------ Seed RefineryColdAutocannon Manual? 0 Play Time 00:14:54 Cumulative 470.1 hours Start 2023.11.05 @ 16:48:55 End 2023.11.05 @ 17:02:25 Sessions 1 Manual Loads 0 Difficulty Rogue Special Mode None Game No. 553 Rogue 466 Adventurer 87 Explorer 0 Win Type - Total 27 Types 8/0/15/1/1/0/2/0/0 Lore% 90 Gallery% 93 Achievement% 76 Wizard Run 0 Options --------- ASCII 0 Keyboard 1 Movement Numpad Keybinds 0 Fullscreen 1 Font 18/SmallcapsGlow Map View 76x50 Tactical HUD 1 Map Filters NONE Filters NONE Steam 1 RUN: 2a54df1a-79a0-4e7d-ab8e-4ec625e3cf85